fUSD/lending_fUSD_20240427
["ID","MTS","AMOUNT","RATE_DAILY","PERIOD"]
[323730366,1714211440185,-1519.95012414,0.00011265,2]
[323730410,1714211442801,-867.53175396,0.00011265,2]
[323730414,1714211442861,-50.36306132,0.00011265,2]
[323730415,1714211442870,-449.7699706,0.00011265,2]
[323730416,1714211442916,-20508.51,0.00011265,2]
[323730417,1714211443025,-3075.3350294,0.00011265,2]
[323730418,1714211443034,-161.70585875,0.00011265,2]
[323730419,1714211443081,-23871.90814125,0.00011265,2]
[323730420,1714211443090,-71613.4841,0.00011277,2]
[323730421,1714211443099,-158.05660954,0.00011277,2]
[323730422,1714211443108,-10000.0,0.00011278,2]
[323730423,1714211443117,-174.2168668,0.00011279,2]
[323730424,1714211443127,-2635.94624898,0.0001128,2]
[323730425,1714211443136,-189.73207954,0.0001128,2]
[323730426,1714211443145,-1000.0,0.00011287,2]
[323730427,1714211443154,-500.0,0.00011287,2]
[323730428,1714211443163,-1000.0,0.00011288,2]
[323730429,1714211443173,-500.0,0.00011288,2]
[323730430,1714211443182,-1000.0,0.00011288,2]
[323730431,1714211443193,-1000.0,0.00011288,2]
[323730432,1714211443201,-1000.0,0.00011288,2]
[323730433,1714211443210,-500.0,0.00011288,2]
[323730434,1714211443219,-500.0,0.00011288,2]
[323730435,1714211443229,-500.0,0.00011326,2]
[323730436,1714211443238,-500.0,0.00011326,2]
[323730438,1714211443247,-500.0,0.00011326,2]
[323730439,1714211443256,-500.0,0.00011326,2]
[323730440,1714211443265,-594.65,0.00011326,2]
[323730441,1714211443274,-536.58,0.00011326,2]
[323730442,1714211443283,-500.0,0.00011326,2]
[323730443,1714211443292,-500.0,0.00011326,2]
[323730444,1714211443300,-1404.23,0.00011326,2]
[323730445,1714211443309,-500.0,0.00011326,2]
[323730446,1714211443318,-500.0,0.00011326,2]
[323730447,1714211443327,-500.0,0.00011326,2]
[323730448,1714211443336,-500.0,0.00011326,2]
[323730449,1714211443345,-2000.33,0.00011326,2]
[323730450,1714211443354,-609.16,0.00011326,2]
[323730452,1714211443362,-1769.22,0.00011326,2]
[323730454,1714211443371,-500.0,0.00011326,2]
[323730455,1714211443380,-1280.97,0.00011326,2]
[323730456,1714211443389,-500.0,0.00011326,2]
[323730457,1714211443398,-1963.27,0.00011326,2]
[323730458,1714211443407,-273.68798314,0.00011326,2]
[323730459,1714211443416,-500.0,0.00011326,2]
[323730460,1714211443426,-500.0,0.00011326,2]
[323730461,1714211443435,-500.0,0.00011326,2]
[323730462,1714211443444,-500.0,0.00011326,2]
[323730463,1714211443453,-291.21780069,0.00011326,2]
[323730464,1714211443462,-7137.76,0.00011326,2]
[323730465,1714211443471,-500.0,0.00011326,2]
[323730466,1714211443480,-500.0,0.00011326,2]
[323730467,1714211443489,-880.2,0.00011326,2]
[323730468,1714211443498,-276.91334052,0.00011326,2]
[323730469,1714211443506,-500.0,0.00011327,2]
[323730470,1714211443515,-500.0,0.00011327,2]
[323730471,1714211443525,-500.0,0.00011327,2]
[323730472,1714211443534,-500.0,0.00011327,2]
[323730473,1714211443543,-761.19,0.00011327,2]
[323730474,1714211443551,-566.38,0.00011327,2]
[323730475,1714211443560,-500.0,0.00011327,2]
[323730476,1714211443569,-500.0,0.00011327,2]
[323730477,1714211443579,-583.67347222,0.00011327,2]
[323730478,1714211443588,-500.0,0.00011327,2]
[323730479,1714211443597,-500.0,0.00011327,2]
[323730480,1714211443606,-500.0,0.00011327,2]
[323730481,1714211443615,-593.97,0.00011327,2]
[323730482,1714211443624,-950.62,0.00011327,2]
[323730483,1714211443633,-1411.24,0.00011327,2]
[323730484,1714211443642,-500.0,0.00011327,2]
[323730485,1714211443651,-500.0,0.00011327,2]
[323730486,1714211443660,-500.0,0.00011327,2]
[323730487,1714211443670,-500.0,0.00011327,2]
[323730488,1714211443679,-520.92,0.00011327,2]
[323730489,1714211443689,-500.0,0.00011327,2]
[323730490,1714211443698,-1484.47,0.00011327,2]
[323730491,1714211443707,-500.0,0.00011327,2]
[323730492,1714211443716,-500.0,0.00011327,2]
[323730493,1714211443725,-500.0,0.00011327,2]
[323730494,1714211443735,-500.0,0.00011327,2]
[323730495,1714211443744,-512.81067974,0.00011327,2]
[323730496,1714211443753,-500.0,0.00011327,2]
[323730497,1714211443762,-500.0,0.00011327,2]
[323730498,1714211443771,-500.0,0.00011327,2]
[323730499,1714211443781,-500.0,0.00011327,2]
[323730500,1714211443789,-500.0,0.00011327,2]
[323730501,1714211443800,-896.28,0.00011327,2]
[323730502,1714211443809,-500.0,0.00011327,2]
[323730503,1714211443818,-500.0,0.00011327,2]
[323730504,1714211443827,-633.52,0.00011327,2]
[323730505,1714211443837,-500.0,0.00011327,2]
[323730506,1714211443846,-500.0,0.00011327,2]
[323730507,1714211443856,-544.35,0.00011327,2]
[323730508,1714211443865,-500.0,0.00011327,2]
[323730509,1714211443874,-500.0,0.00011327,2]
[323730510,1714211443884,-640.00485954,0.00011327,2]
[323730511,1714211443893,-500.0,0.00011327,2]
[323730512,1714211443902,-571.72,0.00011327,2]
[323730513,1714211443912,-234.61442924,0.00011327,2]
[323730514,1714211443925,-1007.7,0.00011327,2]
[323730515,1714211443936,-500.0,0.00011327,2]
[323730516,1714211443946,-500.0,0.00011327,2]
[323730517,1714211443955,-500.0,0.00011327,2]
[323730518,1714211443966,-1440.79,0.00011327,2]
[323730519,1714211443976,-1221.3,0.00011327,2]
[323730520,1714211443985,-500.0,0.00011327,2]
[323730521,1714211443996,-1983.28,0.00011327,2]
[323730522,1714211444007,-318.3,0.00011327,2]
[323730523,1714211444016,-887.43,0.00011327,2]
[323730524,1714211444026,-500.0,0.00011327,2]
[323730525,1714211444035,-500.0,0.00011327,2]
[323730526,1714211444044,-500.0,0.00011327,2]
[323730527,1714211444053,-500.0,0.00011327,2]
[323730528,1714211444063,-500.0,0.00011327,2]
[323730529,1714211444073,-652.49,0.00011327,2]
[323730530,1714211444082,-500.0,0.00011327,2]
[323730531,1714211444092,-572.22,0.00011327,2]
[323730532,1714211444102,-500.0,0.00011327,2]
[323730533,1714211444111,-500.0,0.00011327,2]
[323730534,1714211444120,-1354.59,0.00011327,2]
[323730535,1714211444129,-591.7,0.00011327,2]
[323730536,1714211444138,-500.0,0.00011327,2]
[323730537,1714211444148,-511.74,0.00011327,2]
[323730538,1714211444157,-3657.83,0.00011327,2]
[323730539,1714211444167,-500.0,0.00011327,2]
[323730540,1714211444176,-500.0,0.00011327,2]
[323730541,1714211444187,-564.1,0.00011327,2]
[323730542,1714211444197,-500.0,0.00011327,2]
[323730543,1714211444207,-500.0,0.00011327,2]
[323730544,1714211444217,-4674.74323969,0.00011328,2]
[323730545,1714211444688,-567.4896255,0.00011328,2]
[323730553,1714211445867,-440.2147745,0.0001128,2]
[323730555,1714211446142,-935.3028953,0.0001128,2]
[323730556,1714211446151,-1182.99982139,0.00011328,2]
[323730557,1714211446162,-295.47578606,0.00011328,2]
[323730558,1714211446173,-978.66,0.00011328,2]
[323730559,1714211458227,1263.74254745,8.345e-05,2]
[323730561,1714211550277,199.04,8.519e-05,2]
[323730562,1714212052935,189.08,8.387e-05,2]
[323730563,1714212130035,4020.85598828,8.387e-05,2]
[323730573,1714212461354,-186.19190156,0.00010041,2]
[323730574,1714212461375,-621.84015726,0.00010042,2]
[323730575,1714212461400,-250.0,0.00010043,2]
[323730576,1714212550227,206.41,8.219e-05,2]
[323730577,1714212568594,-150.0,0.00010022,2]
[323730583,1714212632069,-155.0,0.00010021,2]
[323730584,1714212632078,-158.6415,0.00010022,2]
[323730585,1714212632087,-226.755328,0.00010022,2]
[323730586,1714212632098,-72.09225104,0.00010022,2]
[323730587,1714212632107,-213.00774396,0.00010069,2]
[323730588,1714212632127,-546.96745632,0.00010022,2]
[323730589,1714212632136,-521.31726199,0.00010069,2]
[323730611,1714212637984,-18307.99499405,0.00010069,2]
[323730613,1714212637993,-1781.83925523,0.00010125,2]
[323730615,1714212638004,-23359.19,0.00010163,2]
[323730617,1714212638014,-1116.79,0.00010171,2]
[323730618,1714212638023,-188.82,0.00010229,2]
[323730619,1714212638033,-167.4,0.00010239,2]
[323730620,1714212638043,-1000.0,0.00010324,2]
[323730621,1714212638053,-186.95,0.00010332,2]
[323730622,1714212638062,-206.41,0.00010482,2]
[323730623,1714212638072,-925.40761492,0.00010535,2]
[323730624,1714212638081,-155.0,0.000109,2]
[323730625,1714212638091,-2750.0,0.00011,3]
[323730626,1714212638101,-150.0,0.00011,2]
[323730627,1714212638110,-1500.0,0.00011,2]
[323730628,1714212638120,-1500.0,0.00011,2]
[323730629,1714212638129,-1500.0,0.00011,2]
[323730630,1714212638139,-1500.0,0.00011,2]
[323730631,1714212638148,-1500.0,0.00011,2]
[323730632,1714212638157,-1500.0,0.00011,2]
[323730633,1714212638167,-1500.0,0.00011,2]
[323730634,1714212638176,-1216.59813611,0.00011,2]
[323730635,1714212638188,-283.40186389,0.00011,2]
[323730636,1714212638198,-955.56,0.00011,2]
[323730637,1714212638207,-1821.08,0.00011041,2]
[323730638,1714212638216,-851.31,0.00011041,2]
[323730639,1714212638225,-150.0,0.00011099,2]
[323730640,1714212638235,-1500.0,0.000111,2]
[323730641,1714212638245,-150.0,0.00011109,2]
[323730642,1714212638254,-150.0,0.00011112,2]
[323730643,1714212638264,-150.0,0.00011124,2]
[323730644,1714212638276,-150.0,0.00011124,2]
[323730645,1714212638285,-210.0552,0.00011125,2]
[323730646,1714212638295,-672.30802329,0.00011127,2]
[323730647,1714212638304,-150.0,0.00011127,2]
[323730648,1714212638314,-150.0,0.00011129,2]
[323730649,1714212638323,-150.0,0.00011131,2]
[323730650,1714212638332,-150.0,0.00011138,2]
[323730651,1714212638342,-150.0,0.00011152,2]
[323730652,1714212638351,-150.0,0.00011153,2]
[323730654,1714212638361,-150.0,0.00011158,2]
[323730656,1714212638370,-150.0,0.00011171,2]
[323730658,1714212638379,-150.0,0.00011174,2]
[323730660,1714212638388,-575.15,0.00011178,2]
[323730662,1714212638397,-261.10996435,0.00011178,2]
[323730684,1714212640170,-150.0,0.00011143,2]
[323730685,1714212640180,-150.0,0.00011148,2]
[323730686,1714212640190,-150.0,0.0001115,2]
[323730687,1714212640199,-150.0,0.00011151,2]
[323730688,1714212640209,-150.0,0.00011159,2]
[323730689,1714212640218,-150.0,0.00011167,2]
[323730690,1714212640227,-444.24003565,0.00011178,2]
[323730691,1714212640237,-90.61421495,0.00011178,2]
[323730692,1714212640256,-60.03578505,0.00011178,2]
[323730693,1714212640266,-284.26126622,0.00011185,2]
[323730694,1714212640278,-150.0,0.00011187,2]
[323730695,1714212640288,-150.0,0.00011188,2]
[323730696,1714212640298,-150.0,0.00011191,2]
[323730697,1714212640307,-150.0,0.00011193,2]
[323730698,1714212640317,-150.0,0.00011195,2]
[323730699,1714212640326,-150.0,0.00011196,2]
[323730700,1714212640335,-150.0,0.00011198,2]
[323730701,1714212640345,-150.0,0.00011198,2]
[323730702,1714212640355,-150.0,0.00011208,2]
[323730703,1714212640364,-150.0,0.00011212,2]
[323730704,1714212640373,-150.0,0.00011218,2]
[323730705,1714212640383,-150.0,0.00011218,2]
[323730706,1714212640391,-150.0,0.0001122,2]
[323730707,1714212640400,-1064.6701,0.00011225,2]
[323730708,1714212640409,-6450.9477,0.00011225,2]
[323730709,1714212640419,-462.54097472,0.00011226,2]
[323730710,1714212640428,-187.65793343,0.00011227,2]
[323730711,1714212640438,-260.00563735,0.00011227,2]
[323730712,1714212640447,-3792.36563513,0.00011227,2]
[323730713,1714212640474,-539.06283141,0.00011227,2]
[323730714,1714212640527,-150.0,0.00011118,2]
[323730715,1714212640537,-218.20071861,0.00011227,2]
[323730718,1714212640562,-1315.7726701,0.00011227,2]
[323730730,1714212643123,-150.0,0.00011098,2]
[323730731,1714212643132,-150.0,0.00011126,2]
[323730732,1714212643141,-150.0,0.00011128,2]
[323730733,1714212643151,-150.0,0.00011134,2]
[323730734,1714212643160,-48.04068147,0.00011156,2]
[323730743,1714212645916,-298.84757904,0.00010022,2]
[323730744,1714212645926,-101.95931853,0.00011156,2]
[323730745,1714212645935,-150.0,0.00011165,2]
[323730746,1714212645944,-150.0,0.00011209,2]
[323730747,1714212645954,-150.0,0.00011226,2]
[323730748,1714212645963,-155.0,0.00011227,2]
[323730749,1714212645972,-9424.05234475,0.00011227,2]
[323730750,1714212645982,-500.0,0.00011228,2]
[323730751,1714212645991,-500.0,0.00011228,2]
[323730752,1714212646000,-500.0,0.00011228,2]
[323730753,1714212646011,-500.0,0.00011228,2]
[323730754,1714212646021,-994.62,0.00011228,2]
[323730755,1714212646031,-500.0,0.00011228,2]
[323730756,1714212646040,-728.93,0.00011228,2]
[323730757,1714212646050,-500.0,0.00011228,2]
[323730758,1714212646059,-500.0,0.00011228,2]
[323730759,1714212646068,-500.0,0.00011228,2]
[323730760,1714212646077,-1916.99,0.00011228,2]
[323730761,1714212646087,-500.0,0.00011228,2]
[323730762,1714212646096,-500.0,0.00011228,2]
[323730763,1714212646106,-583.78,0.00011228,2]
[323730764,1714212646115,-500.0,0.00011228,2]
[323730765,1714212646124,-1695.5,0.00011228,2]
[323730766,1714212646134,-500.0,0.00011228,2]
[323730767,1714212646144,-1227.6,0.00011228,2]
[323730768,1714212646153,-1881.47,0.00011228,2]
[323730769,1714212646163,-500.0,0.00011228,2]
[323730770,1714212646172,-500.0,0.00011228,2]
[323730771,1714212646181,-500.0,0.00011228,2]
[323730772,1714212646190,-6840.35,0.00011228,2]
[323730774,1714212646200,-214.09142861,0.00011228,2]
[323730775,1714212646209,-500.0,0.00011228,2]
[323730776,1714212646218,-500.0,0.00011228,2]
[323730777,1714212646228,-500.0,0.00011228,2]
[323730778,1714212646237,-500.0,0.00011228,2]
[323730779,1714212646246,-500.0,0.00011228,2]
[323730780,1714212646256,-500.0,0.00011228,2]
[323730781,1714212646266,-542.78,0.00011228,2]
[323730782,1714212646277,-500.0,0.00011228,2]
[323730783,1714212646287,-569.22,0.00011228,2]
[323730784,1714212646296,-402.10518702,0.00011229,2]
[323730785,1714212646306,-49429.11901753,0.00011229,2]
[323730786,1714213081586,201.77,8.259e-05,2]
[323730799,1714213561885,1014.27969438,0.00025,120]
[323730831,1714213745972,191.68,8.255e-05,2]
[323730846,1714213832107,-373.9718439,0.00010022,2]
[323730847,1714213832116,-232.45100731,0.00010022,2]
[323730848,1714213832126,-1038.6,0.00010169,2]
[323730849,1714213832135,-157.29,0.00010171,2]
[323730850,1714213832145,-186.95,0.00010172,2]
[323730851,1714213832154,-445.73714879,0.00010173,2]
[323730852,1714213832166,-554.26285121,0.00010173,2]
[323730853,1714213832175,-191.68,0.00010519,2]
[323730854,1714213832184,-204.5981561,0.00010849,2]
[323730903,1714213838076,-7524.55292552,0.00010849,2]
[323730904,1714213838086,-155.0,0.000109,2]
[323730905,1714213838095,-2750.0,0.00011,3]
[323730906,1714213838104,-300.0,0.00011106,2]
[323730907,1714213838113,-150.0,0.00011108,2]
[323730908,1714213838123,-150.0,0.00011109,2]
[323730909,1714213838132,-150.0,0.00011114,2]
[323730910,1714213838142,-150.0,0.00011115,2]
[323730911,1714213838151,-300.0,0.00011115,2]
[323730912,1714213838160,-2370.44739726,0.0001112,2]
[323730913,1714213838180,-629.55260274,0.0001112,2]
[323730914,1714213838189,-150.0,0.00011121,2]
[323730915,1714213838199,-300.0,0.00011122,2]
[323730916,1714213838208,-150.0,0.00011122,2]
[323730917,1714213838218,-150.0,0.00011124,2]
[323730918,1714213838226,-151.04116384,0.00011124,2]
[323730919,1714213838237,-110.43163236,0.00011125,2]
[323730920,1714213838264,-39.56836764,0.00011125,2]
[323730921,1714213838273,-1000.0,0.00011128,2]
[323730922,1714213838282,-174.2168668,0.00011129,2]
[323730923,1714213838292,-150.67755072,0.00011129,2]
[323730924,1714213838301,-2942.00854151,0.00011129,2]
[323730925,1714213838311,-1033.2572,0.00011129,2]
[323730926,1714213838320,-1873.40908415,0.00011129,2]
[323730927,1714213838399,-2043.46251585,0.00011129,2]
[323730928,1714213838408,-150.0,0.00011131,2]
[323730929,1714213838417,-150.0,0.00011134,2]
[323730930,1714213838427,-150.0,0.00011134,2]
[323730931,1714213838437,-300.0,0.00011135,2]
[323730932,1714213838446,-150.0,0.00011136,2]
[323730933,1714213838455,-1500.0,0.00011137,2]
[323730935,1714213838464,-150.0,0.0001114,2]
[323730936,1714213838473,-150.0,0.00011146,2]
[323730937,1714213838482,-151.67352847,0.00011146,2]
[323730938,1714213838491,-150.0,0.00011147,2]
[323730939,1714213838500,-150.0,0.00011147,2]
[323730940,1714213838509,-304.86395568,0.00011147,2]
[323730946,1714213840321,-1195.13604432,0.00011147,2]
[323730947,1714213840331,-150.0,0.0001115,2]
[323730948,1714213840340,-102.69938445,0.0001115,2]
[323730949,1714213840534,-47.30061555,0.0001115,2]
[323730950,1714213840543,-150.0,0.00011151,2]
[323730951,1714213840552,-150.0,0.00011155,2]
[323730952,1714213840562,-300.0,0.00011162,2]
[323730953,1714213840571,-150.0,0.00011165,2]
[323730954,1714213840580,-42.86762563,0.00011166,2]
[323730968,1714213843153,-107.13237437,0.00011166,2]
[323730970,1714213843162,-150.0,0.00011166,2]
[323730972,1714213843171,-343.88362163,0.00011166,2]
[323730974,1714213843184,-346.11167018,0.00011166,2]
[323730976,1714213843195,-527.9098895,0.00011166,2]
[323730978,1714213843209,-282.09481869,0.00011166,2]
[323730980,1714213843218,-1500.0,0.00011166,2]
[323730982,1714213843228,-150.0,0.00011169,2]
[323730984,1714213843238,-150.0,0.0001117,2]
[323730985,1714213843247,-150.0,0.0001117,2]
[323730986,1714213843256,-1500.0,0.0001117,2]
[323730987,1714213843265,-300.0,0.00011171,2]
[323730988,1714213843274,-150.0,0.00011172,2]
[323730989,1714213843285,-108.6318931,0.00011182,2]
[323730990,1714213843296,-191.3681069,0.00011182,2]
[323730991,1714213843306,-150.0,0.00011185,2]
[323730992,1714213843316,-150.0,0.00011189,2]
[323730993,1714213843325,-300.0,0.00011195,2]
[323730994,1714213843334,-150.0,0.00011197,2]
[323730995,1714213843343,-1500.0,0.00011198,2]
[323730996,1714213843352,-150.0,0.000112,2]
[323730997,1714213843361,-300.0,0.00011201,2]
[323730998,1714213843370,-300.0,0.00011203,2]
[323730999,1714213843379,-150.0,0.00011205,2]
[323731000,1714213843388,-150.0,0.00011205,2]
[323731001,1714213843397,-150.0,0.00011205,2]
[323731002,1714213843406,-150.0,0.00011205,2]
[323731003,1714213843415,-1500.0,0.00011206,2]
[323731004,1714213843425,-150.0,0.00011207,2]
[323731005,1714213843434,-1500.0,0.00011207,2]
[323731006,1714213843443,-150.0,0.00011208,2]
[323731007,1714213843454,-1500.0,0.00011208,2]
[323731008,1714213843463,-150.0,0.00011209,2]
[323731009,1714213843472,-300.0,0.0001121,2]
[323731010,1714213843481,-150.0,0.00011211,2]
[323731011,1714213843490,-150.0,0.00011211,2]
[323731012,1714213843500,-150.0,0.00011212,2]
[323731013,1714213843509,-345.61599546,0.00011216,2]
[323731014,1714213843517,-150.0,0.00011217,2]
[323731015,1714213843525,-150.0,0.00011219,2]
[323731016,1714213843533,-150.0,0.00011222,2]
[323731017,1714213843542,-915.90714684,0.00011223,2]
[323731018,1714213843552,-150.0,0.00011224,2]
[323731019,1714213843562,-150.0,0.00011224,2]
[323731020,1714213843572,-150.0,0.00011226,2]
[323731021,1714213843583,-150.0,0.00011226,2]
[323731022,1714213843593,-719.39443001,0.00011227,2]
[323731023,1714213843604,-500.0,0.00011227,2]
[323731024,1714213843614,-100.61070509,0.00011227,2]
[323731026,1714213843659,-286.5184894,0.00011227,2]
[323731028,1714213843671,-158.38080551,0.00011227,2]
[323731029,1714213843680,-198.45483017,0.00011227,2]
[323731030,1714213843707,-321.70516983,0.00011227,2]
[323731031,1714213843716,-460.12642017,0.00011227,2]
[323731032,1714213843742,-892.31357983,0.00011227,2]
[323731033,1714213843751,-38.81920976,0.00011227,2]
[323731039,1714213846105,-461.18079024,0.00011227,2]
[323731040,1714213846115,-500.0,0.00011227,2]
[323731041,1714213846125,-549.77920976,0.00011227,2]
[323731042,1714213846319,-361.24079024,0.00011227,2]
[323731043,1714213846329,-411.04100006,0.00011227,2]
[323731044,1714213846338,-410.06333031,0.00011227,2]
[323731055,1714214233927,172.51,8.245e-05,2]
[323731057,1714214821664,163.88,8.251e-05,2]
[323731107,1714215032241,-911.68000043,0.00010154,2]
[323731108,1714215032252,-691.72,0.00010155,2]
[323731109,1714215032262,-157.29,0.00010164,2]
[323731110,1714215032272,-800.0,0.00010168,2]
[323731111,1714215032283,-188.82,0.00010192,2]
[323731112,1714215032295,-163.88,0.00010514,2]
[323731113,1714215032305,-155.0,0.000109,2]
[323731114,1714215032315,-598.6796,0.000109,2]
[323731115,1714215032325,-3000.0,0.00011,2]
[323731116,1714215032335,-150.0,0.00011088,2]
[323731117,1714215032345,-150.0,0.00011105,2]
[323731118,1714215032355,-150.0,0.00011106,2]
[323731119,1714215032365,-1500.0,0.0001111,2]
[323731120,1714215032375,-3000.0,0.0001111,2]
[323731121,1714215032385,-150.0,0.00011113,2]
[323731122,1714215032395,-150.0,0.00011118,2]
[323731123,1714215032405,-150.0,0.00011119,2]
[323731124,1714215032415,-150.0,0.00011122,2]
[323731125,1714215032424,-1500.0,0.00011123,2]
[323731126,1714215032435,-300.0,0.00011123,2]
[323731127,1714215032445,-1898.52634034,0.00011125,2]
[323731128,1714215032455,-9013.0904,0.00011127,2]
[323731129,1714215032465,-8675.4046,0.00011128,2]
[323731130,1714215032475,-150.0,0.00011128,2]
[323731131,1714215032485,-2757.02602802,0.00011129,2]
[323731132,1714215032495,-150.0,0.00011132,2]
[323731133,1714215032504,-150.0,0.00011132,2]
[323731134,1714215032513,-150.0,0.00011133,2]
[323731135,1714215032522,-150.0,0.00011134,2]
[323731136,1714215032532,-150.0,0.00011141,2]
[323731137,1714215032542,-150.0,0.00011141,2]
[323731138,1714215032552,-150.0,0.00011142,2]
[323731139,1714215032562,-150.0,0.00011143,2]
[323731140,1714215032571,-1500.0,0.00011144,2]
[323731141,1714215032582,-150.0,0.00011145,2]
[323731142,1714215032592,-150.0,0.00011154,2]
[323731143,1714215032603,-150.0,0.00011154,2]
[323731144,1714215032613,-150.0,0.00011156,2]
[323731145,1714215032623,-150.0,0.00011156,2]
[323731147,1714215032633,-150.0,0.00011158,2]
[323731149,1714215032641,-1500.0,0.00011161,2]
[323731151,1714215032652,-150.0,0.00011163,2]
[323731153,1714215032662,-150.0,0.00011163,2]
[323731155,1714215032672,-1500.0,0.00011167,2]
[323731157,1714215032682,-150.0,0.00011168,2]
[323731159,1714215032692,-150.0,0.00011168,2]
[323731161,1714215032702,-1500.0,0.0001117,2]
[323731163,1714215032712,-1500.0,0.0001117,2]
[323731165,1714215032722,-1500.0,0.00011171,2]
[323731167,1714215032732,-150.0,0.00011172,2]
[323731169,1714215032742,-150.0,0.00011173,2]
[323731171,1714215032752,-150.0,0.00011175,2]
[323731173,1714215032762,-150.0,0.00011176,2]
[323731175,1714215032774,-150.0,0.00011179,2]
[323731177,1714215032784,-150.0,0.00011179,2]
[323731179,1714215032793,-300.0,0.0001118,2]
[323731180,1714215032803,-150.0,0.0001118,2]
[323731182,1714215032812,-1500.0,0.0001118,2]
[323731184,1714215032821,-1500.0,0.00011183,2]
[323731186,1714215032830,-150.0,0.00011184,2]
[323731188,1714215032840,-150.0,0.00011184,2]
[323731190,1714215032851,-150.0,0.00011187,2]
[323731192,1714215032860,-150.0,0.00011188,2]
[323731194,1714215032870,-150.0,0.000112,2]
[323731196,1714215032880,-150.0,0.00011202,2]
[323731198,1714215032889,-150.0,0.00011204,2]
[323731200,1714215032900,-150.0,0.00011205,2]
[323731202,1714215032909,-150.0,0.00011206,2]
[323731204,1714215032919,-1000.0,0.00011214,2]
[323731205,1714215032928,-500.0,0.00011214,2]
[323731206,1714215032939,-150.0,0.00011217,2]
[323731207,1714215032949,-150.0,0.00011218,2]
[323731208,1714215032959,-150.0,0.0001122,2]
[323731209,1714215032971,-150.0,0.0001122,2]
[323731210,1714215032981,-150.0,0.00011221,2]
[323731211,1714215032992,-150.0,0.00011221,2]
[323731212,1714215033002,-150.0,0.00011224,2]
[323731213,1714215033014,-500.0,0.00011226,2]
[323731215,1714215033024,-500.0,0.00011226,2]
[323731217,1714215033034,-500.0,0.00011226,2]
[323731218,1714215033044,-500.0,0.00011226,2]
[323731219,1714215033056,-729.47,0.00011226,2]
[323731220,1714215033065,-500.0,0.00011226,2]
[323731221,1714215033074,-500.0,0.00011226,2]
[323731222,1714215033083,-500.0,0.00011226,2]
[323731223,1714215033092,-500.0,0.00011226,2]
[323731224,1714215033107,-500.0,0.00011226,2]
[323731225,1714215033119,-500.0,0.00011226,2]
[323731226,1714215033129,-500.0,0.00011226,2]
[323731227,1714215033139,-500.0,0.00011226,2]
[323731228,1714215033150,-596.69,0.00011226,2]
[323731229,1714215033159,-500.0,0.00011226,2]
[323731230,1714215033169,-500.0,0.00011226,2]
[323731231,1714215033180,-953.18,0.00011226,2]
[323731232,1714215033189,-500.0,0.00011226,2]
[323731233,1714215033199,-500.0,0.00011226,2]
[323731234,1714215033208,-514.47,0.00011226,2]
[323731235,1714215033218,-500.0,0.00011226,2]
[323731236,1714215033227,-500.0,0.00011226,2]
[323731237,1714215033237,-500.0,0.00011226,2]
[323731238,1714215033248,-1096.12,0.00011226,2]
[323731239,1714215033257,-500.0,0.00011226,2]